bitfinex-derivatives/quotes_SOLF0:USTF0_20250507
["timestamp","ask_amount","ask_price","bid_price","bid_amount"]
[1746635950552,1.37703112,145.24,145.15,2.0239]
[1746635950753,1.37703112,145.24,145.16,12.38817156]
[1746635950948,1.37703112,145.24,145.22,6.8853]
[1746635951143,31.48,145.26,145.19,31.48]
[1746635951453,31.48,145.29,145.2,2.1693]
[1746635951849,6.8841,145.26,145.2,2.1693]
[1746635952854,6.8841,145.26,145.23,6.885]
[1746635953056,31.48,145.29,145.2,2.1693]
[1746635953252,31.48,145.29,145.2,4.2833]
[1746635953453,31.48,145.29,145.25,6.884]
[1746635953757,6.8831,145.28,145.25,6.884]
[1746635953955,31.48,145.29,145.2,4.2833]
[1746635954359,38.3626,145.29,145.2,4.2833]
[1746635954556,38.3626,145.29,145.26,6.8835]
[1746635955056,6.883,145.28,145.26,6.8835]
[1746635955256,31.48,145.29,145.23,31.48]
[1746635955457,6.8836,145.27,145.23,31.48]
[1746635955751,31.48,145.29,145.23,31.48]
[1746635956256,6.8833,145.28,145.23,31.48]
[1746635956457,31.48,145.29,145.23,31.48]
[1746635957056,6.8834,145.27,145.25,6.8842]
[1746635957256,31.48,145.29,145.25,6.8842]
[1746635957552,6.8834,145.27,145.25,6.8842]
[1746635958255,6.8831,145.28,145.25,6.8842]
[1746635959353,6.8831,145.28,145.26,6.8837]
[1746635959951,38.3626,145.29,145.27,6.8833]
[1746635960254,33.5514,145.32,145.23,31.48]
[1746635960451,31.48,145.32,145.23,31.48]
[1746635960954,6.8822,145.3,145.23,31.48]
[1746635961256,6.8822,145.3,145.28,6.8828]
[1746635962359,6.8817,145.31,145.29,6.8824]
[1746635962857,6.8817,145.31,145.28,6.8827]
[1746635963151,38.3612,145.32,145.23,31.48]
[1746635963358,38.3612,145.32,145.24,2.2043]
[1746635963550,31.48,145.32,145.29,6.8823]
[1746635963746,6.8817,145.31,145.29,6.8823]
[1746635964451,38.3612,145.32,145.24,2.2043]
[1746635965056,38.3612,145.32,145.29,6.8822]
[1746635965256,6.8815,145.31,145.29,6.8822]
[1746635965757,38.3611,145.32,145.3,6.8819]
[1746635966256,31.46,145.35,145.24,2.2043]
[1746635966459,31.46,145.35,145.25,2.0796]
[1746635966655,4.2039,145.38,145.25,2.0796]
[1746635966852,4.2039,145.38,145.27,12.38817156]
[1746635967155,43.84817156,145.42,145.28,31.46]
[1746635967550,6.878,145.39,145.28,31.46]
[1746635967752,43.84817156,145.42,145.28,31.46]
[1746635967955,6.877,145.41,145.37,6.8783]
[1746635968455,31.46,145.42,145.37,6.8783]
[1746635968858,6.8775,145.4,145.37,6.8783]
[1746635969156,31.46,145.42,145.36,6.8788]
[1746635969359,6.8774,145.4,145.36,6.8788]
[1746635969761,31.46,145.42,145.34,31.46]
[1746635970158,37.8473,145.46,145.34,31.46]
[1746635970458,6.8755,145.44,145.34,31.46]
[1746635970861,35.7347,145.46,145.4,6.8768]
[1746635972057,6.8761,145.43,145.4,6.8768]
[1746635973162,6.8755,145.44,145.41,6.8766]
[1746635973457,35.7347,145.46,145.39,31.46]
[1746635974059,6.8753,145.44,145.4,6.8769]
[1746635974256,35.7347,145.46,145.4,6.8769]
[1746635974457,4.40892184,145.45,145.4,6.8769]
[1746635974755,4.40892184,145.44,145.41,6.8766]
[1746635975154,4.40892184,145.43,145.41,6.8766]
[1746635975464,35.7347,145.46,145.41,6.8766]
[1746635975761,6.8756,145.44,145.41,6.8766]
[1746635975962,4.40213041,145.45,145.39,31.46]
[1746635976155,4.40213041,145.43,145.39,31.46]
[1746635976353,4.40213041,145.48,145.44,6.8752]
[1746635976756,6.8741,145.47,145.44,6.8752]
[1746635976957,4.40213041,145.48,145.44,6.8752]
[1746635977153,4.40213041,145.47,145.43,6.8756]
[1746635977349,11.27613041,145.47,145.4,2.1862]
[1746635977551,11.27613041,145.47,145.44,6.875]
[1746635977753,6.8751,145.45,145.4,2.1862]
[1746635978261,6.8746,145.46,145.4,2.1862]
[1746635978459,33.3492,145.49,145.4,2.1862]
[1746635978759,6.8746,145.46,145.43,6.8757]
[1746635978954,6.8746,145.46,145.4,2.1862]
[1746635979158,4.39540005,145.48,145.4,2.1862]
[1746635979556,4.39540005,145.48,145.44,6.8752]
[1746635979859,4.39540005,145.47,145.44,6.8752]
[1746635980360,11.26990005,145.46,145.43,6.8755]
[1746635980557,4.39540005,145.46,145.4,2.1862]
[1746635980756,11.27060005,145.45,145.4,2.1862]
[1746635981258,6.8752,145.45,145.4,2.1862]
[1746635981457,33.3492,145.49,145.4,2.1862]
[1746635981661,4.38819344,145.48,145.4,2.1862]
[1746635981863,6.8741,145.47,145.44,6.875]
[1746635982560,11.26259344,145.46,145.44,6.875]
[1746635983060,4.38819344,145.45,145.44,6.875]
[1746635983765,4.38819344,145.45,145.43,6.8755]
[1746635984063,4.38819344,145.45,145.4,2.1862]
[1746635984064,6.8742,145.47,145.4,2.1862]
[1746635984255,6.8742,145.47,145.44,6.8753]
[1746635984460,4.38834794,145.46,145.44,6.8753]
[1746635984962,6.8742,145.47,145.44,6.8753]
[1746635984963,4.38834794,145.45,145.44,6.8753]
[1746635988166,4.3901019,145.45,145.44,6.8753]
[1746635988762,6.8732,145.49,145.46,6.8739]
[1746635989469,4.39078929,145.48,145.47,6.8739]
[1746635989969,4.39078929,145.48,145.43,31.3]
[1746635990463,6.8727,145.5,145.43,31.3]
[1746635990666,4.39232842,145.49,145.43,31.3]
[1746635990863,4.39232842,145.49,145.47,6.8736]
[1746635991466,4.39232842,145.48,145.47,6.8736]
[1746635992369,31.3,145.52,145.48,6.8732]
[1746635992669,6.8725,145.5,145.48,6.8732]
[1746635993068,4.39423484,145.49,145.48,6.8732]
[1746635994066,4.39423484,145.49,145.47,6.8737]
[1746635994368,4.39423484,145.48,145.47,6.8737]
[1746635995069,4.39423484,145.49,145.47,6.8737]
[1746635996469,4.39423484,145.48,145.47,6.8737]
[1746635996970,11.26723484,145.49,145.47,6.8737]
[1746635997669,4.39423484,145.48,145.47,6.8737]
[1746635998371,4.39423484,145.48,145.47,38.1537]
[1746635998669,4.39423484,145.49,145.48,6.8734]
[1746635999269,4.39423484,145.51,145.49,6.8725]
[1746635999972,4.39423484,145.5,145.49,6.8725]
[1746636000861,6.8708,145.54,145.51,6.8717]
[1746636001064,6.8708,145.54,145.47,31.28]
[1746636001260,6.8703,145.55,145.47,31.28]
[1746636001467,4.39423484,145.56,145.47,31.28]
[1746636001671,4.39423484,145.55,145.47,31.28]
[1746636002071,6.8698,145.56,145.53,6.8709]
[1746636002072,4.39423484,145.54,145.53,6.8709]
[1746636002374,4.39423484,145.54,145.52,31.28]
[1746636002572,11.26483484,145.54,145.51,38.1516]
[1746636002768,4.39423484,145.53,145.51,31.28]
[1746636003163,4.39423484,145.52,145.51,31.28]
[1746636003362,4.39423484,145.52,145.51,38.152]
[1746636003670,4.39423484,145.53,145.51,38.152]
[1746636004370,4.39423484,145.52,145.51,38.152]
[1746636004771,4.39423484,145.52,145.51,31.28]
[1746636005164,4.39423484,145.52,145.48,30.88]
[1746636005369,6.8723,145.51,145.48,37.753]
[1746636005571,4.39423484,145.5,145.48,37.753]
[1746636005770,4.39423484,145.49,145.48,30.88]
[1746636005970,6.8718,145.52,145.49,6.8727]
[1746636006172,4.39423484,145.51,145.49,6.8727]
[1746636006772,4.39423484,145.5,145.49,6.8727]
[1746636007878,32.9997,145.61,145.49,19.24047915]
[1746636008074,37.2721,145.61,145.49,12.36047915]
[1746636008273,37.2721,145.61,145.49,14.36557915]
[1746636008473,6.3921,145.61,145.49,14.36557915]
[1746636009477,6.3921,145.61,145.59,6.868]
[1746636009673,6.3921,145.61,145.56,30.88]
[1746636009977,13.2596,145.61,145.58,6.8687]
[1746636010774,6.3921,145.61,145.56,30.88]
[1746636011277,4.2724,145.61,145.56,30.88]
[1746636011480,4.2724,145.61,145.6,6.8677]
[1746636011979,2.0639,145.68,145.6,6.8677]
[1746636011980,12.36047915,145.73,145.6,30.88]
[1746636012181,4.2429,145.7,145.6,30.88]
[1746636012374,35.1229,145.7,145.64,6.8655]
[1746636012875,35.1229,145.7,145.6,30.88]
[1746636013080,48.85606274,145.7,145.6,30.88]
[1746636013281,1.25265617,145.69,145.6,30.88]
[1746636013482,6.8641,145.68,145.6,30.88]
[1746636013875,36.49558359,145.7,145.6,30.88]
[1746636014783,6.8657,145.65,145.61,6.8669]
[1746636014981,6.8657,145.65,145.6,30.88]
[1746636015182,6.8659,145.64,145.61,6.8671]
[1746636016081,2.2034,145.65,145.58,30.86]
[1746636016082,6.8664,145.63,145.6,6.8677]
[1746636016381,2.2034,145.65,145.58,30.86]
[1746636016580,2.2034,145.65,145.63,6.8662]
[1746636016777,2.2034,145.65,145.58,30.86]
[1746636017178,2.2034,145.65,145.61,6.8669]
[1746636017480,2.2034,145.65,145.58,30.86]
[1746636018079,6.8662,145.64,145.6,6.8674]
[1746636018281,2.2034,145.65,145.58,30.86]
[1746636018781,9.069,145.65,145.61,6.8669]
[1746636019586,9.069,145.65,145.58,30.86]
[1746636019587,2.2034,145.65,145.58,30.86]
[1746636020786,9.0689,145.65,145.62,6.8668]
[1746636022194,4.30406497,145.64,145.62,6.8668]
[1746636022494,4.30406497,145.64,145.63,6.8663]
[1746636023190,4.30406497,145.64,145.62,30.86]
[1746636023393,2.1992,145.68,145.62,30.86]
[1746636023593,2.1992,145.68,145.59,30.86]
[1746636023784,6.8656,145.65,145.62,6.8668]
[1746636024197,2.1992,145.68,145.59,30.86]
[1746636024696,9.0636,145.68,145.64,6.8656]
[1746636025195,2.1992,145.68,145.59,30.86]
[1746636026093,2.1992,145.68,145.64,6.8658]
[1746636026094,6.8652,145.66,145.64,6.8658]
[1746636026992,6.8646,145.67,145.64,6.8658]
[1746636027298,6.8646,145.67,145.63,30.86]
[1746636027691,6.865,145.66,145.64,6.8656]
[1746636027895,2.1992,145.68,145.63,30.86]
[1746636028195,6.8652,145.66,145.63,37.7261]
[1746636028396,2.1992,145.68,145.63,30.86]
[1746636029094,6.8636,145.69,145.63,30.86]
[1746636030692,6.8636,145.69,145.66,6.8649]
[1746636030892,6.8641,145.68,145.63,30.86]
[1746636031196,3.51758359,145.7,145.63,30.86]
[1746636031599,6.8654,145.66,145.63,37.7261]
[1746636031896,3.51758359,145.7,145.63,37.7261]
[1746636032698,6.8652,145.66,145.63,37.7261]
[1746636033496,4.30409745,145.65,145.63,37.7261]
[1746636033995,6.8652,145.66,145.63,37.7261]
[1746636034593,3.51758359,145.7,145.63,30.86]
[1746636035099,6.8649,145.66,145.64,6.8658]
[1746636035791,6.8655,145.65,145.63,30.86]
[1746636036198,6.8655,145.65,145.63,37.7262]
[1746636036594,3.51758359,145.7,145.63,37.7262]
[1746636037300,6.8656,145.65,145.63,37.7262]
[1746636038601,6.8651,145.66,145.63,37.7262]
[1746636039600,6.8651,145.66,145.64,6.8657]
[1746636039801,1.37268359,145.7,145.63,30.86]
[1746636040403,6.8647,145.67,145.64,6.8656]
[1746636041105,6.8647,145.67,145.65,6.8654]
[1746636041402,6.8642,145.68,145.63,30.86]
[1746636041602,1.37268359,145.7,145.63,30.86]
[1746636042004,1.37268359,145.7,145.67,6.8641]
[1746636042305,1.37268359,145.7,145.63,30.86]
[1746636042702,1.37268359,145.7,145.69,6.8635]
[1746636043303,30.72,145.78,145.68,30.72]
[1746636043504,12.33265239,145.77,145.68,30.72]
[1746636043705,6.8626,145.71,145.68,30.72]
[1746636043905,14.50165239,145.77,145.68,30.72]
[1746636044409,6.8631,145.7,145.68,37.5839]
[1746636044604,6.8631,145.7,145.68,30.72]
[1746636044909,6.8631,145.7,145.65,30.72]
[1746636045106,6.8631,145.7,145.67,6.8642]
[1746636046314,4.1309,145.73,145.66,6.8648]
[1746636047207,6.8638,145.69,145.66,6.8648]
[1746636047409,6.8638,145.69,145.67,6.8643]
[1746636047608,4.1309,145.73,145.67,6.8643]
[1746636047809,6.8634,145.7,145.67,6.8643]
[1746636048612,6.8634,145.7,145.65,30.72]
[1746636048613,4.1309,145.73,145.65,30.72]
[1746636048810,2.0887,145.73,145.65,30.72]
[1746636049012,2.0887,145.73,145.69,6.8632]
[1746636049208,30.72,145.74,145.65,30.72]
[1746636049418,34.8873,145.77,145.65,30.72]
[1746636049707,34.8873,145.77,145.66,12.33265239]
[1746636049907,34.8873,145.77,145.65,30.72]
[1746636050112,14.50285239,145.76,145.68,6.8639]
[1746636050309,6.8627,145.71,145.68,6.8639]
[1746636050812,6.8623,145.72,145.65,30.72]
[1746636051412,6.8626,145.71,145.68,6.8636]
[1746636053012,6.8626,145.71,145.69,6.8634]
[1746636054813,6.8626,145.71,145.68,6.8637]
[1746636055217,6.8631,145.7,145.68,6.8637]
[1746636055420,14.50285239,145.76,145.68,6.8637]
[1746636055607,6.8628,145.71,145.69,6.8635]
[1746636056016,2.1702,145.76,145.65,30.72]
[1746636056217,2.1702,145.76,145.69,6.8635]
[1746636056420,14.50285239,145.76,145.66,30.72]
[1746636056715,6.8638,145.69,145.66,37.5846]
[1746636057417,43.03265239,145.73,145.66,30.72]
[1746636057616,2.1447,145.72,145.66,30.72]
[1746636057818,2.1447,145.72,145.63,30.7]
[1746636058016,2.088,145.71,145.64,6.8656]
[1746636058608,43.03265239,145.73,145.67,6.8641]
[1746636058609,30.7,145.73,145.67,6.8641]
[1746636059016,6.8634,145.7,145.67,6.8641]
[1746636059218,30.7,145.73,145.68,6.8638]
[1746636059519,6.8625,145.72,145.63,30.7]
[1746636060017,6.8625,145.72,145.7,6.8629]
[1746636060417,2.1447,145.74,145.67,30.72]
[1746636060718,32.8902,145.76,145.67,30.72]
[1746636060914,32.8902,145.76,145.68,2.048]
[1746636061115,32.8902,145.76,145.71,6.8623]
[1746636061311,32.8902,145.76,145.68,2.048]
[1746636061514,6.8619,145.73,145.68,2.048]
[1746636062419,6.8622,145.72,145.7,6.8628]
[1746636062720,32.8902,145.76,145.68,2.048]
[1746636062921,32.8902,145.76,145.7,6.8628]
[1746636063118,32.8902,145.76,145.68,2.048]
[1746636064420,6.8628,145.71,145.69,6.8634]
[1746636065423,6.863,145.7,145.68,8.9119]
[1746636065715,32.8902,145.76,145.68,6.8639]
[1746636065920,32.8902,145.76,145.67,30.72]
[1746636065921,6.8628,145.71,145.69,6.8634]
[1746636066723,6.8623,145.72,145.69,6.8634]
[1746636067022,6.8623,145.72,145.7,6.8629]
[1746636067822,6.8623,145.72,145.69,6.8633]
[1746636068323,6.8623,145.72,145.7,6.863]
[1746636068523,6.8617,145.73,145.67,30.72]
[1746636069020,6.8624,145.72,145.67,30.72]
[1746636069324,32.8902,145.76,145.67,30.72]
[1746636069525,32.8902,145.76,145.69,6.8632]
[1746636069725,6.8624,145.72,145.69,6.8632]
[1746636070426,6.8624,145.72,145.7,6.8629]
[1746636070722,6.8624,145.72,145.67,30.72]
[1746636070923,6.8626,145.71,145.69,6.8633]
[1746636071426,6.8623,145.72,145.69,6.8633]
[1746636071725,6.8623,145.72,145.7,6.863]
[1746636072926,6.8626,145.71,145.69,6.8633]
[1746636073429,593.28,145.84,145.67,30.72]
[1746636073628,12.33265239,145.79,145.67,30.72]
[1746636073924,32.7384,145.78,145.67,30.72]
[1746636074121,6.8622,145.72,145.7,6.8628]
[1746636074525,12.33265239,145.76,145.67,30.72]
[1746636075131,12.33265239,145.76,145.69,6.8634]
[1746636075427,4.2153,145.77,145.67,30.72]
[1746636075626,4.2153,145.77,145.68,2.1896]
[1746636076029,2.1848,145.77,145.68,2.1896]
[1746636076229,32.7384,145.78,145.68,2.1896]
[1746636076530,32.7384,145.78,145.69,2.0776]
[1746636076726,6.8602,145.77,145.74,6.8608]
[1746636077129,32.7384,145.78,145.74,6.8608]
[1746636077327,6.8602,145.77,145.74,6.8608]
[1746636077629,32.7384,145.78,145.74,6.8608]
[1746636077927,6.8601,145.77,145.74,6.8608]
[1746636078331,32.7384,145.78,145.72,30.64]
[1746636078830,32.7384,145.78,145.72,37.502]
[1746636079226,32.7384,145.78,145.72,30.64]
[1746636079423,32.7384,145.78,145.72,37.502]
[1746636079726,32.7384,145.78,145.72,30.64]
[1746636079727,6.8616,145.73,145.72,30.64]
[1746636079932,6.8616,145.73,145.69,30.64]
[1746636080628,6.8614,145.74,145.71,6.8623]
[1746636081232,6.8614,145.74,145.72,6.8619]
[1746636083833,6.8614,145.74,145.71,6.8623]
[1746636084030,32.7384,145.78,145.71,6.8623]
[1746636084232,32.7384,145.78,145.69,30.64]
[1746636084435,6.8614,145.74,145.72,6.862]
[1746636087030,6.8609,145.75,145.69,30.64]
[1746636087235,6.8609,145.75,145.73,6.8615]
[1746636089037,32.7384,145.78,145.74,6.861]
[1746636089542,6.8618,145.73,145.7,6.8627]
[1746636090240,32.7384,145.78,145.7,6.8627]
[1746636090241,6.8621,145.72,145.7,6.8627]
[1746636091042,6.8621,145.72,145.69,6.8632]
[1746636091240,6.8626,145.71,145.69,6.8632]
[1746636091435,30.64,145.74,145.66,30.64]
[1746636091642,37.0019,145.73,145.66,37.5047]
[1746636091842,6.8638,145.69,145.66,37.5047]
[1746636092035,6.8638,145.69,145.66,30.64]
[1746636092944,6.8631,145.7,145.67,6.864]
[1746636093950,6.8631,145.7,145.68,6.8637]
[1746636094650,37.0019,145.73,145.66,30.64]
[1746636094945,30.36,145.77,145.66,30.64]
[1746636095150,6.861,145.75,145.72,6.8617]
[1746636095349,30.36,145.77,145.67,2.0729]
[1746636096043,30.36,145.77,145.66,30.64]
[1746636096044,42.69265239,145.77,145.66,30.64]
[1746636096448,30.36,145.77,145.66,30.64]
[1746636097052,30.36,145.77,145.71,6.8622]
[1746636097245,30.36,145.77,145.7,30.36]
[1746636097447,30.36,145.77,145.7,37.2228]
[1746636097748,30.36,145.77,145.7,30.36]
[1746636097947,6.4342,145.79,145.73,6.8613]
[1746636098248,6.4342,145.79,145.7,30.36]
[1746636098451,6.8599,145.77,145.7,30.36]
[1746636098654,6.8599,145.77,145.7,32.4351]
[1746636098848,6.4342,145.79,145.7,32.4351]
[1746636099150,6.8605,145.76,145.7,32.4351]
[1746636101152,6.8605,145.76,145.73,6.8612]
[1746636101453,6.8605,145.76,145.7,32.4351]
[1746636101648,6.8605,145.76,145.73,6.8612]
[1746636101858,6.8607,145.75,145.7,32.4351]
[1746636102150,6.4342,145.79,145.71,6.8623]
[1746636102359,6.8626,145.71,145.7,30.36]
[1746636102749,30.36,145.76,145.68,6.8637]
[1746636103255,30.36,145.76,145.69,6.8635]
[1746636103448,6.8628,145.71,145.69,6.8635]
[1746636103854,6.8628,145.71,145.68,6.8637]
[1746636104259,6.8631,145.7,145.67,623.36]
[1746636104554,30.36,145.76,145.67,30.36]
[1746636104949,6.8636,145.69,145.67,37.2242]
[1746636105357,30.36,145.76,145.67,37.2242]
[1746636105557,6.8634,145.7,145.67,37.2242]
[1746636105852,6.8634,145.7,145.68,6.8638]
[1746636106656,6.8636,145.69,145.67,37.2242]
[1746636106856,12.33265239,145.75,145.67,30.36]
[1746636107356,12.33265239,145.75,145.64,30.36]
[1746636107760,6.8642,145.68,145.64,30.36]
[1746636109262,6.8637,145.69,145.64,30.36]
[1746636109470,6.8637,145.69,145.67,6.8644]
[1746636109869,6.8637,145.69,145.64,30.36]
[1746636110671,6.864,145.68,145.66,6.8647]
[1746636111364,6.8644,145.67,145.65,6.8653]
[1746636112569,6.8641,145.68,145.65,6.8653]
[1746636112768,6.8641,145.68,145.64,30.36]
[1746636113863,2.063,145.71,145.64,30.36]
[1746636114267,2.063,145.71,145.62,30.36]
[1746636114667,2.063,145.71,145.65,6.8652]
[1746636115269,6.8645,145.67,145.65,6.8652]
[1746636118669,6.8645,145.67,145.64,6.8656]
[1746636118869,6.865,145.66,145.64,6.8656]
[1746636119071,2.063,145.71,145.62,30.36]
[1746636119271,2.063,145.71,145.63,6.866]
[1746636120269,6.8655,145.65,145.63,6.866]
[1746636121072,6.8659,145.64,145.62,37.2266]
[1746636121466,4.1054,145.67,145.61,17.08417]
[1746636121676,4.1054,145.67,145.61,23.95117]
[1746636121876,4.1054,145.67,145.61,17.08417]
[1746636122275,6.8665,145.63,145.61,23.95137]
[1746636122868,4.1054,145.67,145.61,17.08417]
[1746636123074,30.36,145.68,145.61,17.08417]
[1746636123468,6.8651,145.66,145.64,6.8655]
[1746636123670,30.36,145.68,145.64,6.8655]
[1746636124270,12.33265239,145.72,145.63,30.38]
[1746636124271,32.443,145.71,145.63,30.38]
[1746636124670,6.8638,145.69,145.66,6.8647]
[1746636125673,6.8642,145.68,145.66,6.8647]
[1746636126176,6.8642,145.68,145.65,6.8651]
[1746636128278,32.443,145.71,145.63,30.38]
[1746636128471,30.38,145.71,145.63,30.38]
[1746636128778,30.3,145.74,145.63,30.38]
[1746636128973,30.3,145.74,145.64,2.1414]
[1746636129879,30.3,145.74,145.64,14.47405239]
[1746636130078,30.3,145.77,145.64,14.47405239]
[1746636130678,6.8617,145.73,145.69,6.8633]
[1746636130881,30.3,145.77,145.69,30.3]
[1746636131079,6.2422,145.76,145.69,30.3]
[1746636131381,6.8628,145.71,145.69,30.3]
[1746636132079,6.863,145.7,145.69,30.3]
[1746636132776,6.8628,145.71,145.69,30.3]
[1746636132982,6.2422,145.76,145.69,30.3]
[1746636133276,6.8619,145.73,145.69,30.3]
[1746636133681,6.8619,145.73,145.7,6.8627]
[1746636135386,6.8621,145.72,145.69,37.1633]
[1746636135686,6.8628,145.71,145.69,30.3]
[1746636137784,6.8628,145.71,145.69,37.1635]
[1746636137989,6.8623,145.72,145.69,37.1635]
[1746636138588,6.8623,145.72,145.7,6.863]
[1746636138785,6.8623,145.72,145.69,30.3]
[1746636139193,6.8623,145.72,145.69,37.1633]
[1746636140483,6.8627,145.71,145.69,37.1633]
[1746636141784,6.8627,145.71,145.69,30.3]
[1746636141984,6.863,145.7,145.69,30.3]
[1746636143991,6.8635,145.69,145.67,6.8643]
[1746636144293,6.2422,145.76,145.68,6.8638]
[1746636144491,6.863,145.71,145.68,6.8638]
[1746636144791,6.2422,145.76,145.68,6.8638]
[1746636144992,6.8632,145.7,145.68,6.8638]
[1746636145495,6.2422,145.76,145.67,6.8642]
[1746636145688,12.33265239,145.75,145.67,6.8642]
[1746636145992,6.8638,145.69,145.66,37.1445]
[1746636146592,6.8638,145.69,145.66,30.28]
[1746636146794,6.8638,145.69,145.67,6.8644]
[1746636147196,30.28,145.73,145.68,6.8639]
[1746636147997,30.28,145.73,145.67,6.8642]
[1746636148295,30.28,145.73,145.66,30.28]
[1746636149296,6.8627,145.71,145.67,6.864]
[1746636150305,6.8627,145.71,145.68,6.8637]
[1746636152207,6.8627,145.71,145.69,6.8633]
[1746636152806,30.28,145.73,145.71,6.8626]
[1746636154009,37.1417,145.73,145.71,6.8626]
[1746636155007,37.1417,145.73,145.7,6.8628]
[1746636156808,6.8621,145.72,145.7,6.8628]
[1746636159210,37.1419,145.73,145.7,6.8628]
[1746636160111,6.8622,145.72,145.7,6.8628]
[1746636160913,37.1419,145.73,145.7,6.8628]
[1746636161711,37.1419,145.73,145.71,6.8625]
[1746636162111,6.8622,145.72,145.7,6.8626]
[1746636164316,6.8622,145.72,145.69,6.8633]
[1746636164815,6.8626,145.71,145.69,6.8633]
[1746636165913,6.863,145.7,145.68,6.8637]
[1746636166107,30.28,145.73,145.66,30.28]
[1746636166517,6.8642,145.68,145.66,30.28]
[1746636167013,6.865,145.66,145.63,2.0664]
[1746636167218,12.33265239,145.71,145.63,30.28]
[1746636167418,6.1524,145.7,145.63,30.28]
[1746636167716,6.8656,145.65,145.63,37.146]
[1746636167917,6.8656,145.65,145.63,30.28]
[1746636168116,6.8656,145.65,145.62,6.8666]
[1746636168420,6.8662,145.64,145.6,623.38]
[1746636168613,6.8662,145.64,145.61,23.95107]
[1746636168815,12.33265239,145.68,145.61,17.08417]
[1746636169012,6.8663,145.64,145.61,17.08417]
[1746636169210,12.33265239,145.68,145.61,17.08417]
[1746636171120,6.8656,145.65,145.62,6.8664]
[1746636171515,12.33265239,145.68,145.62,6.8664]
[1746636173023,6.8661,145.64,145.61,23.95117]
[1746636173319,12.33265239,145.68,145.61,17.08417]
[1746636173523,6.8668,145.62,145.61,17.08417]
[1746636175917,6.8685,145.59,145.57,30.28]
[1746636176213,6.3894,145.64,145.55,6.8699]
[1746636177021,12.33265239,145.62,145.55,6.8699]
[1746636177217,30.3,145.61,145.55,6.8699]
[1746636177424,6.8685,145.59,145.55,6.8699]
[1746636177721,30.3,145.61,145.54,30.28]
[1746636177921,6.8683,145.59,145.54,30.28]
[1746636178424,6.8688,145.58,145.55,6.8701]
[1746636179618,6.8692,145.57,145.55,6.8701]
[1746636180525,6.8688,145.58,145.55,6.8701]
[1746636180724,30.3,145.61,145.54,30.28]
[1746636181124,6.8686,145.59,145.54,30.28]
[1746636181524,6.8686,145.59,145.55,6.8699]
[1746636181829,6.8686,145.59,145.54,30.28]
[1746636182224,6.8686,145.59,145.56,6.8696]
[1746636182626,6.8687,145.58,145.56,6.8696]
[1746636183226,6.8681,145.6,145.57,6.8691]
[1746636183531,6.8681,145.6,145.54,30.28]
[1746636184328,6.8681,145.6,145.57,6.8689]
[1746636184626,6.8681,145.6,145.54,30.28]
[1746636184927,6.8683,145.59,145.56,6.8692]
[1746636186827,6.8689,145.58,145.56,6.8692]
[1746636187027,30.3,145.61,145.54,30.28]
[1746636187428,6.8698,145.56,145.54,30.28]
[1746636187728,6.8698,145.56,145.53,6.8708]
[1746636188229,6.8702,145.55,145.52,6.8713]
[1746636189726,6.8702,145.55,145.53,6.871]